lending/lending_fUSD_20240710
["ID","MTS","AMOUNT","RATE_DAILY","PERIOD"]
[331624784,1720588139666,-161.32035324,0.00011665,2]
[331624785,1720588139692,-150.00000001,0.00011688,2]
[331624786,1720588139714,-13688.67964675,0.00011705,2]
[331624787,1720588157033,8407.4650607,0.00011199,2]
[331624815,1720588211916,188.88551194,0.00011199,2]
[331624819,1720588233314,-322.64070648,0.00011605,2]
[331624820,1720588233326,-172.6,0.00011705,2]
[331624821,1720588233336,-900.88,0.00011731,2]
[331624822,1720588233345,-910.14003366,0.00011766,2]
[331624823,1720588233356,-499.2998041,0.00011766,2]
[331624824,1720588233368,-389.78955866,0.00011766,2]
[331624825,1720588233379,-578.5596183,0.00011766,2]
[331624826,1720588233391,-1642.57190824,0.00011766,2]
[331624827,1720588233402,-2113.57901046,0.00011766,2]
[331624828,1720588233414,-2219.9999988,0.00011766,2]
[331624829,1720588233425,-2289.26786308,0.00011766,2]
[331624830,1720588233437,-1183.25660705,0.00011766,2]
[331624831,1720588233448,-12073.53559765,0.00011766,2]
[331624832,1720588233458,-269.11,0.00011776,2]
[331624833,1720588233467,-7094.56574878,0.00011776,2]
[331624834,1720588233476,-269.11,0.00011808,2]
[331624835,1720588233486,-250.0,0.00011821,2]
[331624836,1720588233496,-167.68,0.00011837,2]
[331624837,1720588233507,-269.11,0.00011841,2]
[331624838,1720588233518,-1000.0,0.00011852,2]
[331624839,1720588233527,-269.11,0.00011873,2]
[331624840,1720588233537,-269.11,0.00011905,2]
[331624841,1720588233547,-269.11,0.00011938,2]
[331624842,1720588233557,-269.11,0.0001197,2]
[331624843,1720588233568,-269.11,0.00012002,2]
[331624844,1720588233577,-269.11,0.00012034,2]
[331624845,1720588233586,-269.11,0.00012067,2]
[331624846,1720588233595,-364.83,0.00012085,2]
[331624847,1720588233604,-269.11,0.00012099,2]
[331624848,1720588233613,-269.11,0.00012131,2]
[331624849,1720588233622,-269.11,0.00012164,2]
[331624850,1720588233631,-269.11,0.00012196,2]
[331624851,1720588233639,-269.11,0.00012228,2]
[331624852,1720588233649,-500.0,0.00012241,2]
[331624853,1720588233658,-269.11,0.00012261,2]
[331624854,1720588233667,-269.11,0.00012293,2]
[331624855,1720588233676,-227.29136124,0.00012314,2]
[331624856,1720588233685,-269.11,0.00012325,2]
[331624857,1720588233694,-269.11,0.00012357,2]
[331624858,1720588233702,-269.11,0.0001239,2]
[331624859,1720588233712,-468.08,0.00012482,2]
[331624860,1720588233721,-499.99,0.00012482,2]
[331624861,1720588233730,-2894.0,0.00012488,2]
[331624862,1720588233739,-355.17,0.000126,2]
[331624863,1720588233748,-164.97,0.000126,2]
[331624864,1720588233757,-252.46,0.000126,2]
[331624865,1720588233766,-838.72,0.000126,2]
[331624866,1720588233775,-197.8989823,0.00012681,2]
[331624867,1720588233785,-355.17,0.00012778,2]
[331624868,1720588233794,-528.94,0.00012778,2]
[331624869,1720588233802,-150.0,0.00012778,2]
[331624870,1720588233811,-424.74,0.00012778,2]
[331624871,1720588233822,-150.0,0.00012778,2]
[331624872,1720588233831,-150.0,0.00012778,2]
[331624873,1720588233840,-165.01,0.00012778,2]
[331624874,1720588233849,-528.94,0.00012778,2]
[331624875,1720588233858,-424.74,0.00012778,2]
[331624876,1720588233868,-150.0,0.00012778,2]
[331624877,1720588233877,-150.0,0.00012778,2]
[331624878,1720588233886,-355.17,0.00012778,2]
[331624879,1720588233895,-165.01,0.00012778,2]
[331624880,1720588233904,-150.0,0.00012778,2]
[331624881,1720588233913,-424.74,0.00012778,2]
[331624882,1720588233923,-150.0,0.00012778,2]
[331624883,1720588233932,-150.0,0.00012778,2]
[331624884,1720588233941,-165.01,0.00012778,2]
[331624885,1720588233950,-528.94,0.00012778,2]
[331624886,1720588233960,-150.0,0.00012778,2]
[331624887,1720588233970,-355.17,0.00012778,2]
[331624888,1720588233980,-528.94,0.00012778,2]
[331624889,1720588233990,-424.74,0.00012778,2]
[331624890,1720588234000,-150.0,0.00012778,2]
[331624891,1720588234010,-150.0,0.00012778,2]
[331624892,1720588234020,-165.01,0.00012778,2]
[331624893,1720588234030,-355.17,0.00012778,2]
[331624894,1720588234040,-528.94,0.00012778,2]
[331624895,1720588234050,-150.0,0.00012778,2]
[331624896,1720588234060,-354.67,0.00012778,2]
[331624897,1720588234072,-424.74,0.00012778,2]
[331624898,1720588234081,-165.01,0.00012778,2]
[331624899,1720588234090,-150.0,0.00012778,2]
[331624900,1720588234103,-528.94,0.00012778,2]
[331624901,1720588234114,-424.74,0.00012778,2]
[331624902,1720588234123,-150.0,0.00012778,2]
[331624903,1720588234132,-165.01,0.00012778,2]
[331624904,1720588234142,-424.74,0.00012778,2]
[331624905,1720588234151,-528.94,0.00012778,2]
[331624906,1720588234161,-150.0,0.00012778,2]
[331624907,1720588234171,-165.01,0.00012778,2]
[331624908,1720588234181,-424.74,0.00012778,2]
[331624909,1720588234190,-165.01,0.00012778,2]
[331624910,1720588234200,-528.94,0.00012778,2]
[331624911,1720588234209,-150.0,0.00012778,2]
[331624912,1720588234218,-242.7045,0.000128,2]
[331624913,1720588234228,-1648.2042,0.000128,2]
[331624914,1720588234237,-818.181,0.00012892,2]
[331624915,1720588234247,-148293.76496095,0.000129,2]
[331624916,1720588235203,-2670.35134403,0.000129,2]
[331624917,1720588235215,-1033.7,0.000129,2]
[331624918,1720588235226,-831.66201726,0.000129,2]
[331624919,1720588235237,-2299.94667776,0.000129,2]
[331624920,1720588235246,-188.37517102,0.000129,2]
[331624958,1720588238547,-1274.25252714,0.00012273,2]
[331624960,1720588238559,-867.38208159,0.00012273,2]
[331624962,1720588238571,-1055.36582898,0.000129,2]
[331624964,1720588238582,-1051.65208943,0.000129,2]
[331624965,1720588238594,-4481.64561057,0.000129,2]
[331624966,1720588238604,-229.0206,0.000129,2]
[331624967,1720588238614,-273.90957045,0.000129,2]
[331624968,1720588238623,-324.93960871,0.000129,2]
[331624969,1720588238634,-174.95,0.00012978,2]
[331624970,1720588238643,-766.33461024,0.00013,2]
[331624971,1720588238667,-119195.26586785,0.00013,2]
[331624972,1720588238712,-3709.76952961,0.00013,2]
[331624973,1720588238724,-1027.8934329,0.00013,2]
[331624974,1720588238747,-398.71547489,0.00013,2]
[331624975,1720588238759,-1276.58993761,0.00013,2]
[331624976,1720588238771,-46221.59195658,0.00013,2]
[331625046,1720588240419,-29732.51706761,0.00013,2]
[331625047,1720588240431,-5128.11107525,0.00013,2]
[331625048,1720588240490,-2971.0,0.00013,2]
[331625049,1720588240622,-312.19,0.00013,2]
[331625050,1720588240634,-640.98643833,0.00013,2]
[331625051,1720588240646,-3870.20962344,0.00013,2]
[331625052,1720588240658,-1611.16894499,0.00013,2]
[331625053,1720588240670,-403.1885085,0.00013,2]
[331625055,1720588241046,-97220.4857652,0.00013,2]
[331625062,1720588243507,-943.69811687,0.00013,2]
[331625063,1720588243519,-1102.852144,0.00013,2]
[331625064,1720588243532,-9367.57070698,0.00013,2]
[331625065,1720588243544,-302.69446775,0.00013,2]
[331625066,1720588243574,-283.56504792,0.00013,2]
[331625067,1720588243684,-424.74,0.00012778,2]
[331625068,1720588243694,-71476.02535755,0.00013,2]
[331625069,1720588243706,-838.98386409,0.00013,2]
[331625072,1720588244267,-487.46962576,0.00013,2]
[331625073,1720588244341,-528.94,0.00012778,2]
[331625074,1720588244351,-565081.16745868,0.00013,2]
[331625076,1720588247056,-152.4,0.00012778,2]
[331625077,1720588247066,-432.82668101,0.00013,2]
[331625078,1720588247095,-2180.96,0.00013,2]
[331625079,1720588247107,-618.3903605,0.00013,2]
[331625080,1720588247149,-556.3,0.00013,2]
[331625081,1720588247160,-1450.04333375,0.00013,2]
[331625082,1720588247172,-1377.525,0.00013,2]
[331625083,1720588247184,-1186.20049456,0.00013,2]
[331625084,1720588247195,-3098.21703613,0.00013,2]
[331625087,1720588247259,-4028.06691352,0.00013,2]
[331625088,1720588247288,-451.23409272,0.00013,2]
[331625089,1720588247327,-6066.02504513,0.00013,2]
[331625090,1720588263982,295.48,0.00010959,2]
[331625091,1720588339660,555.32,0.00011199,2]
[331625092,1720588339688,6450.90088392,0.00011199,2]
[331625093,1720588343702,148832.00256835,0.00010959,2]
[331625094,1720588343731,55084.38808818,0.00010959,2]
[331625095,1720588344969,7006.22088392,0.00011199,2]
[331625096,1720588363587,361.33,0.00010315,2]
[331625097,1720588505276,-159.72,0.00011786,2]
[331625098,1720588505300,-7544.28,0.00011861,2]
[331625099,1720588541127,-1133.67,0.00011786,2]
[331625100,1720588541151,-1133.67,0.0001179,2]
[331625101,1720588541174,-1133.67,0.00011793,2]
[331625102,1720588541196,-1111.99,0.00011796,2]
[331625103,1720588545539,150.0,0.00011199,2]
[331625104,1720588545562,150.0,0.00011199,2]
[331625105,1720588545584,150.0,0.00011199,2]
[331625106,1720588545606,150.0,0.00011199,2]
[331625107,1720588545633,150.0,0.00011199,2]
[331625108,1720588545659,150.0,0.00011199,2]
[331625109,1720588545681,150.0,0.00011199,2]
[331625110,1720588545710,150.0,0.00011199,2]
[331625111,1720588545732,150.0,0.00011199,2]
[331625112,1720588545755,150.0,0.00011199,2]
[331625113,1720588545778,150.0,0.00011199,2]
[331625114,1720588545800,150.0,0.00011199,2]
[331625115,1720588545824,150.0,0.00011199,2]
[331625116,1720588545847,150.0,0.00011199,2]
[331625117,1720588545868,150.0,0.00011199,2]
[331625118,1720588545890,150.0,0.00011199,2]
[331625119,1720588545912,150.0,0.00011199,2]
[331625120,1720588545934,150.0,0.00011199,2]
[331625121,1720588545956,150.0,0.00011199,2]
[331625122,1720588545978,150.0,0.00011199,2]
[331625123,1720588546000,150.0,0.00011199,2]
[331625124,1720588546020,150.0,0.00011199,2]
[331625125,1720588546042,150.0,0.00011199,2]
[331625126,1720588546066,150.0,0.00011199,2]
[331625127,1720588546088,50.24108052,0.00011199,2]
[331625128,1720588558679,150.0,0.00011199,2]
[331625129,1720588558699,150.0,0.00011199,2]
[331625130,1720588558719,150.0,0.00011199,2]
[331625131,1720588558739,150.0,0.00011199,2]
[331625132,1720588558759,150.0,0.00011199,2]
[331625133,1720588558779,150.0,0.00011199,2]
[331625134,1720588558801,150.0,0.00011199,2]
[331625135,1720588558829,150.0,0.00011199,2]
[331625136,1720588558853,150.0,0.00011199,2]
[331625137,1720588558875,150.0,0.00011199,2]
[331625138,1720588558898,150.0,0.00011199,2]
[331625139,1720588558921,150.0,0.00011199,2]
[331625140,1720588558942,150.0,0.00011199,2]
[331625141,1720588558964,150.0,0.00011199,2]
[331625142,1720588558985,150.0,0.00011199,2]
[331625143,1720588559005,150.0,0.00011199,2]
[331625144,1720588559030,150.0,0.00011199,2]
[331625145,1720588559054,1100.24108052,0.00011199,2]
[331625146,1720588562891,179.17,0.00010959,2]
[331625147,1720588578733,-21.68,0.00011796,2]
[331625148,1720588578759,-1133.67,0.00011799,2]
[331625149,1720588578782,-1133.67,0.00011802,2]
[331625150,1720588578806,-1133.67,0.00011805,2]
[331625151,1720588578832,-1133.67,0.00011808,2]
[331625152,1720588578855,-214.64,0.00011811,2]
[331625153,1720588630793,249.26221779,0.00010959,2]
[331625154,1720588633298,-156.04,0.00011555,2]
[331625155,1720588633322,-156.04,0.00011601,2]
[331625156,1720588633345,-156.04,0.00011648,2]
[331625157,1720588633370,-156.04,0.00011694,2]
[331625158,1720588633394,-156.04,0.0001174,2]
[331625159,1720588633418,-156.04,0.00011787,2]
[331625160,1720588633441,-919.03,0.00011811,2]
[331625161,1720588633465,-1133.67,0.00011814,2]
[331625162,1720588633488,-1089.06,0.00011817,2]
[331625163,1720588635025,150.0,0.00010959,2]
[331625164,1720588635048,150.0,0.00010959,2]
[331625165,1720588635071,150.0,0.00010959,2]
[331625166,1720588635093,150.0,0.00010959,2]
[331625167,1720588635116,1.01847667,0.00010959,2]
[331625168,1720588640501,242.7684969,0.00010959,2]
[331625169,1720588692442,-265.0,0.00011472,2]
[331625170,1720588697891,150.0,0.00010959,2]
[331625171,1720588697912,150.0,0.00010959,2]
[331625172,1720588697934,0.55600662,0.00010959,2]
[331625173,1720588706540,150.0,0.00010959,2]
[331625174,1720588706563,300.0,0.00010959,2]
[331625175,1720588707460,150.0,0.00011199,2]
[331625176,1720588707480,150.0,0.00011199,2]
[331625177,1720588707500,150.0,0.00011199,2]
[331625178,1720588707520,203.3571194,0.00011199,2]
[331625179,1720588707543,2996.88396112,0.00011199,2]
[331625180,1720588717218,155.6671093,0.00011199,2]
[331625181,1720588747816,-735.0,0.00011472,2]
[331625182,1720588747847,-166.04615262,0.00011711,2]
[331625183,1720588747878,-44.61,0.00011817,2]
[331625184,1720588747910,-1133.67,0.0001182,2]
[331625185,1720588747942,-1133.67,0.00011824,2]
[331625186,1720588747962,-735.0,0.00011827,2]
[331625187,1720588747987,-166.04615262,0.00011827,2]
[331625188,1720588748004,-44.61,0.00011827,2]
[331625189,1720588748021,-188.01384738,0.00011827,2]
[331625190,1720588748031,-945.65615262,0.0001183,2]
[331625191,1720588748042,-188.01384738,0.0001183,2]
[331625192,1720588748052,-945.65615262,0.00011833,2]
[331625193,1720588748069,-188.01384738,0.00011833,2]
[331625194,1720588748079,-156.04,0.00011833,2]
[331625195,1720588748088,-429.95384738,0.00011836,2]
[331625196,1720588777801,291.1,0.00010959,2]
[331625197,1720588785849,310.30001537,0.00011199,2]
[331625198,1720588815339,254.40293043,0.00011199,2]
[331625199,1720588827734,151.071014,0.00025,60]
[331625200,1720588833272,151.071014,0.00025,64]
[331625201,1720588834595,151.071014,0.00025,65]
[331625202,1720588838137,151.071014,0.00025,66]
[331625203,1720588843678,151.071014,0.00025,67]
[331625204,1720588846860,151.071014,0.00025,71]
[331625205,1720588850530,151.071014,0.00025,72]
[331625206,1720588854785,151.071014,0.00025,73]
[331625207,1720588857976,151.071014,0.00025,74]
[331625208,1720588863243,151.071014,0.00025,60]
[331625209,1720588866474,151.071014,0.00025,64]
[331625210,1720588873238,151.071014,0.00025,65]
[331625211,1720588878561,151.071014,0.00025,66]
[331625212,1720588882628,400.79,9.703e-05,2]
[331625213,1720588900960,3650.24108052,0.00011199,2]
[331625214,1720588935504,475.98032119,0.00011199,2]
[331625215,1720588979104,210.77762955,0.00011199,2]
[331625216,1720589016072,3650.24108052,0.00011199,2]
[331625217,1720589017248,3650.24108052,0.00011199,2]
[331625218,1720589018728,3650.24108052,0.00011199,2]
[331625219,1720589026877,2550.0,0.00011199,2]
[331625220,1720589100420,2141.63460873,0.00011199,2]
[331625221,1720589121089,1042.37546399,0.00011199,2]
[331625222,1720589180318,319.28013051,0.00011199,2]
[331625223,1720589205617,264.7511771,0.00011199,2]
[331625224,1720589214663,3650.24108052,0.00011199,2]
[331625229,1720589259875,319.28353567,0.00011199,2]
[331625248,1720589386822,3650.24108052,0.00011199,2]
[331625249,1720589431584,-250.0,0.00011538,2]
[331625250,1720589431593,-156.04,0.00011586,2]
[331625251,1720589431603,-133.25718291,0.00011604,2]
[331625252,1720589431615,-726.7057985,0.00011604,2]
[331625253,1720589431628,-949.48701859,0.00011604,2]
[331625254,1720589431638,-200.0,0.00011619,2]
[331625255,1720589431648,-156.04,0.00011686,2]
[331625256,1720589431659,-156.04,0.00011787,2]
[331625257,1720589431668,-200.8005917,0.00011836,2]
[331625258,1720589431685,-502.91556092,0.00011836,2]
[331625259,1720589431694,-1133.67,0.00011839,2]
[331625260,1720589431703,-1133.67,0.00011842,2]
[331625261,1720589431712,-1133.67,0.00011845,2]
[331625262,1720589431721,-156.04,0.00011888,2]
[331625263,1720589431730,-400.79,0.00011967,2]
[331625264,1720589431739,-156.04,0.00011988,2]
[331625265,1720589431748,-499.99,0.00012018,2]
[331625266,1720589431757,-156.04,0.00012089,2]
[331625267,1720589431766,-300.0,0.00012099,2]
[331625268,1720589431775,-847.27,0.000121,2]
[331625269,1720589431784,-532.8,0.000121,2]
[331625270,1720589431793,-156.04,0.00012189,2]
[331625271,1720589431802,-200.0,0.000122,4]
[331625272,1720589431811,-500.0,0.00012241,2]
[331625273,1720589431821,-500.0,0.000123,4]
[331625274,1720589431833,-800.0,0.000124,4]
[331625275,1720589431842,-259.89538818,0.00012429,7]
[331625276,1720589431851,-1100.0,0.000125,4]
[331625277,1720589431860,-671.14973941,0.00012503,2]
[331625278,1720589431869,-424.74,0.00012578,2]
[331625279,1720589431878,-528.94,0.00012578,2]
[331625280,1720589431887,-1300.0,0.000126,4]
[331625281,1720589431896,-200.0,0.000127,4]
[331625282,1720589431905,-346.66,0.00012778,2]
[331625283,1720589431915,-299.7934,0.000128,2]
[331625284,1720589431924,-1031.501596,0.000128,2]
[331625285,1720589431937,-1751.648104,0.000128,2]
[331625286,1720589431947,-200.0,0.000128,4]
[331625287,1720589431956,-4848.1642,0.000129,2]
[331625288,1720589431966,-1604.51410304,0.000129,2]
[331625289,1720589431982,-389.00967572,0.000129,2]
[331625290,1720589431994,-2065.60483936,0.000129,2]
[331625291,1720589432013,-2274.36,0.000129,2]
[331625292,1720589433253,-3483.57441616,0.000129,2]
[331625293,1720589433277,-588.74678369,0.000129,2]
[331625294,1720589433289,-2009.17611856,0.000129,2]
[331625306,1720589437527,-3363.50336613,0.000129,2]
[331625307,1720589437539,-1425.33982887,0.000129,2]
[331625308,1720589437556,-340.05864811,0.000129,2]
[331625309,1720589437568,-9406.35382036,0.000129,2]
[331625310,1720589437577,-300.8329,0.000129,2]
[331625312,1720589437588,-6255.14075965,0.000129,2]
[331625315,1720589437660,-303.39064035,0.000129,2]
[331625316,1720589437670,-965.9951,0.000129,2]
[331625317,1720589437679,-492.003,0.000129,2]
[331625318,1720589437688,-474.77658882,0.000129,2]
[331625319,1720589437698,-200.0,0.000129,4]
[331625320,1720589437707,-2500.0,0.000129,2]
[331625321,1720589437717,-10432.46737179,0.000129,2]
[331625322,1720589437726,-1391.41021387,0.000129,2]
[331625323,1720589438191,-3991.18446678,0.000129,2]
[331625324,1720589438204,-1000.0,0.00012906,2]
[331625325,1720589438214,-4615.70000004,0.00012997,2]
[331625326,1720589438223,-9481.33476642,0.00013,2]
[331625327,1720589438236,-1520.60108001,0.00013,2]
[331625328,1720589438248,-119299.2539394,0.00013,2]
[331625329,1720589438495,-998.52381322,0.00013,2]
[331625330,1720589438507,-1886.88,0.00013,2]
[331625331,1720589438518,-2816.14644729,0.00013,2]
[331625332,1720589438534,-6528.8066344,0.00013,2]
[331625333,1720589438546,-1242.44162706,0.00013,2]
[331625334,1720589438587,-454.68255431,0.00013,2]
[331625335,1720589438599,-14784.121523,0.00013,2]
[331625336,1720589439302,-406.38005561,0.00013,2]
[331625337,1720589439314,-959.26636,0.00013,2]
[331625339,1720589439327,-302.52178472,0.00013,2]
[331625340,1720589439340,-23876.33875266,0.00013,2]
[331625341,1720589439354,-969.78150889,0.00013,2]
[331625342,1720589439368,-634.5420854,0.00013,2]
[331625370,1720589440232,-2316.26424982,0.00013,2]
[331625373,1720589440245,-4523.17323603,0.00013,2]
[331625377,1720589440981,-5932.0,0.00013,2]
[331625378,1720589440993,-527.39556223,0.00013,2]
[331625379,1720589441004,-2240.37422997,0.00013,2]
[331625380,1720589441017,-447.82325319,0.00013,2]
[331625381,1720589441029,-384.644286,0.00013,2]
[331625382,1720589441041,-2980.52193553,0.00013,2]
[331625383,1720589441059,-295.48,0.00013,2]
[331625384,1720589441076,-774.98595179,0.00013,2]
[331625385,1720589441090,-1147.02191716,0.00013,2]
[331625386,1720589441102,-1300.47673645,0.00013,2]
[331625387,1720589441115,-534.96488336,0.00013,2]
[331625388,1720589441187,-707.12336694,0.00013,2]
[331625389,1720589441200,-1048.582763,0.00013,2]
[331625390,1720589441640,-162218.2589662,0.00013,2]
[331625391,1720589441652,-293.52,0.00013,2]
[331625392,1720589441685,-1229.29624253,0.00013,2]
[331625405,1720589442654,-88534.8688042,0.00013,2]
[331625408,1720589443248,-1114.68,0.00013,2]
[331625409,1720589443260,-559.1,0.00013,2]
[331625410,1720589443288,-1113.8701207,0.00013,2]
[331625411,1720589443407,-298.93134934,0.00013,2]
[331625412,1720589443418,-689.39500002,0.00013,2]
[331625413,1720589443428,-1598.25883587,0.00013,2]
[331625414,1720589443440,-2352.73628948,0.00013,2]
[331625415,1720589443451,-44591.72971566,0.00013,2]
[331625418,1720589446978,-679.73839833,0.00013,2]
[331625422,1720589548687,-500.0,0.00012241,2]
[331625423,1720589548714,-1633.0,0.00012899,2]
[331625424,1720589548738,-500.0,0.000129,2]
[331625425,1720589548761,-1118.4259,0.000129,2]
[331625426,1720589548783,-231.90170231,0.000129,2]
[331625427,1720589548806,-107.82679769,0.000129,2]
[331625428,1720589549112,378.23,0.00010639,2]
[331625429,1720589553555,-2392.17320231,0.000129,2]
[331625430,1720589553578,-7607.82679769,0.000129,2]
[331625431,1720589605983,177.09,0.00011199,2]
[331625432,1720589606009,1275.26955291,0.00011199,2]
[331625433,1720589629770,2178.93469491,0.00011199,2]
[331625434,1720589633068,155.112191,0.00011199,2]
[331625435,1720589666415,-17341.07221788,0.000118,2]
[331625436,1720589666439,-500.0,0.00012241,2]
[331625437,1720589666460,-227.29136124,0.00012314,2]
[331625438,1720589666482,-250.0,0.00012555,2]
[331625439,1720589666503,-2094.2523,0.000128,2]
[331625440,1720589666527,-158919.88880231,0.000129,2]
[331625441,1720589666547,-855.0314,0.000129,2]
[331625442,1720589666570,-178.0412208,0.000129,2]
[331625443,1720589666592,-282.7298,0.000129,2]
[331625444,1720589666617,-378.23,0.00012903,2]
[331625445,1720589666639,-2889.9473346,0.00012999,2]
[331625446,1720589666662,-1188526.51556317,0.00013,2]
[331625447,1720589677975,150.0,9.9e-05,2]
[331625448,1720589678007,301.35765127,9.909e-05,2]
[331625450,1720589866274,14853.54928316,0.00011199,2]
[331625451,1720589958184,382.0,0.00027,120]
[331625452,1720590088132,12636.2197445,0.00011199,2]
[331625453,1720590148981,354.06,0.00010117,2]
[331625454,1720590172369,280.5,0.00025,60]
[331625455,1720590317786,6038.37266124,0.00025,60]
[331625456,1720590407428,1500.0,0.00011199,2]
[331625462,1720590472865,-250.0,0.0001195,2]
[331625463,1720590472890,-194.6,0.00011953,2]
[331625464,1720590472914,-165.08,0.00011953,2]
[331625465,1720590510193,1000.0,0.0001186,2]
[331625486,1720590628291,250.0,0.00011799,2]
[331625497,1720590633271,-0.53064049,0.00012056,2]
[331625498,1720590633283,-183.25935951,0.00012056,2]
[331625499,1720590633292,-500.0,0.00012241,2]
[331625500,1720590633301,-500.0,0.000123,4]
[331625501,1720590633310,-354.06,0.00012381,2]
[331625502,1720590633319,-1000.0,0.000124,4]
[331625503,1720590633328,-1500.0,0.000125,4]
[331625504,1720590633340,-171.57,0.00012548,2]
[331625505,1720590633349,-300.0,0.00012587,2]
[331625506,1720590633358,-172.6,0.00012588,2]
[331625507,1720590633367,-190.15,0.00012588,2]
[331625508,1720590633379,-3448.26,0.00012588,2]
[331625509,1720590633388,-444.36,0.00012588,2]
[331625510,1720590633397,-150.99,0.00012588,2]
[331625511,1720590633406,-2100.0,0.000126,4]
[331625512,1720590633414,-1000.0,0.00012613,2]
[331625513,1720590633423,-25056.71938384,0.00012614,2]
[331625514,1720590633434,-574.25050338,0.00012614,2]
[331625515,1720590633910,1307.91021532,0.00011199,7]
[331625535,1720590638002,-12912.82205891,0.00012614,2]
[331625536,1720590638015,-121370.20805387,0.00012614,2]
[331625537,1720590638025,-936.3976,0.00012641,2]
[331625538,1720590638037,-2500.0,0.0001267,2]
[331625539,1720590638048,-150.0,0.000127,2]
[331625540,1720590638059,-164.99,0.000127,2]
[331625541,1720590638071,-2600.0,0.000127,4]
[331625542,1720590638083,-557.91,0.00012769,2]
[331625543,1720590638095,-499.99,0.00012769,2]
[331625544,1720590638105,-235.08923222,0.00012769,2]
[331625545,1720590638116,-1000.0,0.00012769,2]
[331625546,1720590638127,-50144.0349,0.0001277,2]
[331625547,1720590638137,-9968.8805,0.0001277,2]
[331625548,1720590638150,-1308.0005,0.0001277,2]
[331625549,1720590638169,-265.18,0.00012795,3]
[331625550,1720590638180,-424.8441,0.000128,2]
[331625551,1720590638191,-4030.7088,0.000128,2]
[331625552,1720590638201,-693.6053,0.000128,2]
[331625553,1720590638213,-285.13302031,0.000128,2]
[331625554,1720590638223,-500.0,0.000128,4]
[331625555,1720590638234,-542.01238623,0.00012806,2]
[331625556,1720590638245,-285.1330203,0.00012825,2]
[331625557,1720590638256,-285.1330203,0.0001285,2]
[331625558,1720590638267,-688.8586,0.0001287,2]
[331625559,1720590638278,-285.1330203,0.00012875,2]
[331625560,1720590638290,-1173.0178889,0.0001289,2]
[331625561,1720590638302,-14852.1424,0.000129,2]
[331625562,1720590638314,-500.0,0.000129,2]
[331625563,1720590638325,-94174.1376,0.000129,2]
[331625564,1720590638337,-9214.3483,0.000129,2]
[331625565,1720590638351,-1385.4558,0.000129,2]
[331625566,1720590638363,-180.51469047,0.000129,2]
[331625567,1720590638376,-285.1330203,0.000129,2]
[331625568,1720590638388,-500.0,0.000129,4]
[331625569,1720590638401,-179.25993922,0.000129,2]
[331625570,1720590638413,-448.891141,0.000129,2]
[331625571,1720590638424,-191.3178059,0.000129,2]
[331625572,1720590638436,-400.44599124,0.0001299,2]
[331625573,1720590638448,-400.44599124,0.0001299,2]
[331625574,1720590638459,-400.44599124,0.0001299,2]
[331625575,1720590638471,-84301.93472864,0.00013,2]
[331625576,1720590638483,-1662440.60257143,0.00013,2]
[331625577,1720590639341,-868011.91328868,0.00013,2]